[Event "Late Titled Tuesday Blitz February 8 2022"]
[White "Martirosyan, Haik M."]
[Black "Solon, Nathan"]
[WhiteFideId "13306553"]
[BlackFideId "2017229"]
[WhiteElo "2735"]
[BlackElo "2564"]
[Result "1-0"]
[Round "06"]
[TimeControl "180+1"]
[Date "2022.02.08"]
[WhiteClock "0:00:56"]
[BlackClock "0:00:04"]

1. Na3 {[%clk 0:03:00]}  e5 {[%clk 0:02:58]} 2. c4 {[%clk 0:02:54]}  Nc6 {[%clk 0:02:53]} 3. Nc2 {[%clk 0:02:53]}  Nf6 {[%clk 0:02:51]} 4. d3 {[%clk 0:02:53]}  d5 {[%clk 0:02:49]} 5. cxd5 {[%clk 0:02:54]}  Nxd5 {[%clk 0:02:50]} 6. g3 {[%clk 0:02:54]}  Be6 {[%clk 0:02:47]} 7. Nf3 {[%clk 0:02:53]}  f6 {[%clk 0:02:45]} 8. Bg2 {[%clk 0:02:53]}  Be7 {[%clk 0:02:40]} 9. a3 {[%clk 0:02:52]}  a5 {[%clk 0:02:40]} 10. e4 {[%clk 0:02:52]}  Nb6 {[%clk 0:02:38]} 11. d4 {[%clk 0:02:52]}  Bc4 {[%clk 0:02:31]} 12. d5 {[%clk 0:02:48]}  Nb8 {[%clk 0:02:24]} 13. Ne3 {[%clk 0:02:48]}  Ba6 {[%clk 0:02:24]} 14. Bf1 {[%clk 0:02:47]}  O-O {[%clk 0:02:22]} 15. Nf5 {[%clk 0:02:29]}  Rf7 {[%clk 0:02:00]} 16. Be3 {[%clk 0:02:24]}  Bf8 {[%clk 0:01:57]} 17. Rc1 {[%clk 0:02:24]}  c6 {[%clk 0:01:53]} 18. dxc6 {[%clk 0:02:23]}  Qc7 {[%clk 0:01:36]} 19. Qb3 {[%clk 0:02:16]}  Nc8 {[%clk 0:01:19]} 20. Bc4 {[%clk 0:01:38]}  Bxc4 {[%clk 0:01:17]} 21. cxb7 {[%clk 0:01:39]}  Qxb7 {[%clk 0:01:04]} 22. Qxc4 {[%clk 0:01:38]}  Nb6 {[%clk 0:00:51]} 23. Bxb6 {[%clk 0:01:33]}  Qxb6 {[%clk 0:00:52]} 24. O-O {[%clk 0:01:33]}  Na6 {[%clk 0:00:48]} 25. Rfd1 {[%clk 0:01:29]}  Nc5 {[%clk 0:00:23]} 26. Rd5 {[%clk 0:01:23]}  Rc8 {[%clk 0:00:20]} 27. b4 {[%clk 0:01:23]}  axb4 {[%clk 0:00:20]} 28. axb4 {[%clk 0:01:24]}  Nxe4 {[%clk 0:00:18]} 29. Ne7+ {[%clk 0:01:03]}  Kh8 {[%clk 0:00:15]} 30. Rc5 {[%clk 0:01:03]}  Nxc5 {[%clk 0:00:09]} 31. Qxf7 {[%clk 0:01:00]}  Bxe7 {[%clk 0:00:08]} 32. Qxe7 {[%clk 0:01:00]}  Qc6 {[%clk 0:00:04]} 33. Rxc5 {[%clk 0:00:56]} 1-0


[Site "https://www.chess.com"]

[Event "Late Titled Tuesday Blitz February 8 2022"]
[White "Michelakos, Panagiotis"]
[Black "Zhigalko, Sergei"]
[WhiteFideId "4216067"]
[BlackFideId "13502956"]
[WhiteElo "2140"]
[BlackElo "2662"]
[Result "0-1"]
[Round "06"]
[TimeControl "180+1"]
[Date "2022.02.08"]
[WhiteClock "0:00:03"]
[BlackClock "0:00:20"]

1. d4 {[%clk 0:03:00]}  Nf6 {[%clk 0:02:59]} 2. c4 {[%clk 0:02:57]}  e6 {[%clk 0:02:59]} 3. Nc3 {[%clk 0:02:58]}  Bb4 {[%clk 0:02:59]} 4. e3 {[%clk 0:02:58]}  O-O {[%clk 0:02:58]} 5. Bd3 {[%clk 0:02:56]}  d5 {[%clk 0:02:58]} 6. Nf3 {[%clk 0:02:56]}  b6 {[%clk 0:02:58]} 7. O-O {[%clk 0:02:56]}  Bb7 {[%clk 0:02:59]} 8. cxd5 {[%clk 0:02:50]}  exd5 {[%clk 0:02:59]} 9. a3 {[%clk 0:02:46]}  Bd6 {[%clk 0:02:59]} 10. b4 {[%clk 0:02:45]}  a6 {[%clk 0:02:59]} 11. Qb3 {[%clk 0:02:38]}  Qe7 {[%clk 0:02:58]} 12. Bb2 {[%clk 0:02:18]}  Nbd7 {[%clk 0:02:58]} 13. Rac1 {[%clk 0:02:13]}  b5 {[%clk 0:02:25]} 14. a4 {[%clk 0:02:03]}  c6 {[%clk 0:02:21]} 15. Na2 {[%clk 0:01:26]}  Nb6 {[%clk 0:02:10]} 16. Ne5 {[%clk 0:01:26]}  Nc4 {[%clk 0:01:49]} 17. Bc3 {[%clk 0:01:14]}  Rfe8 {[%clk 0:01:35]} 18. Bxc4 {[%clk 0:01:12]}  bxc4 {[%clk 0:01:29]} 19. Qc2 {[%clk 0:01:07]}  Ne4 {[%clk 0:01:29]} 20. Nf3 {[%clk 0:00:56]}  Bc8 {[%clk 0:01:25]} 21. Nd2 {[%clk 0:00:40]}  Bf5 {[%clk 0:01:21]} 22. Nxe4 {[%clk 0:00:38]}  Bxe4 {[%clk 0:01:21]} 23. Qd2 {[%clk 0:00:39]}  Bxh2+ {[%clk 0:00:50]} 24. Kxh2 {[%clk 0:00:37]}  Qh4+ {[%clk 0:00:51]} 25. Kg1 {[%clk 0:00:36]}  Bxg2 {[%clk 0:00:52]} 26. f3 {[%clk 0:00:10]}  Bxf1 {[%clk 0:00:41]} 27. Rxf1 {[%clk 0:00:09]}  Re6 {[%clk 0:00:41]} 28. Rf2 {[%clk 0:00:09]}  Rae8 {[%clk 0:00:42]} 29. e4 {[%clk 0:00:07]}  dxe4 {[%clk 0:00:40]} 30. fxe4 {[%clk 0:00:07]}  Rg6+ {[%clk 0:00:34]} 31. Rg2 {[%clk 0:00:07]}  Rxe4 {[%clk 0:00:35]} 32. d5 {[%clk 0:00:05]}  cxd5 {[%clk 0:00:27]} 33. Rxg6 {[%clk 0:00:03]}  hxg6 {[%clk 0:00:25]} 34. Qxd5 {[%clk 0:00:04]}  Qg3+ {[%clk 0:00:19]} 35. Kf1 {[%clk 0:00:03]}  Qf3+ {[%clk 0:00:19]} 36. Kg1 {[%clk 0:00:03]}  Rg4+ {[%clk 0:00:20]} 0-1


[Site "https://www.chess.com"]

[Event "Late Titled Tuesday Blitz February 8 2022"]
[White "Mirzoev, Azer"]
[Black "Vovk, Orest"]
[WhiteFideId "13400304"]
[BlackFideId "14113490"]
[WhiteElo "2525"]
[BlackElo "2203"]
[Result "0-1"]
[Round "06"]
[TimeControl "180+1"]
[Date "2022.02.09"]
[WhiteClock "0:00:12"]
[BlackClock "0:00:09"]

1. Nf3 {[%clk 0:02:59]}  h6 {[%clk 0:02:57]} 2. c4 {[%clk 0:02:57]}  g5 {[%clk 0:02:57]} 3. d4 {[%clk 0:02:56]}  Bg7 {[%clk 0:02:58]} 4. Nc3 {[%clk 0:02:55]}  c5 {[%clk 0:02:58]} 5. d5 {[%clk 0:02:52]}  Bxc3+ {[%clk 0:02:59]} 6. bxc3 {[%clk 0:02:52]}  d6 {[%clk 0:02:59]} 7. e4 {[%clk 0:02:51]}  Qa5 {[%clk 0:02:56]} 8. Bd2 {[%clk 0:02:49]}  Bg4 {[%clk 0:02:55]} 9. h3 {[%clk 0:02:40]}  Bxf3 {[%clk 0:02:55]} 10. Qxf3 {[%clk 0:02:40]}  Nd7 {[%clk 0:02:55]} 11. Be2 {[%clk 0:02:26]}  Qa4 {[%clk 0:02:53]} 12. O-O {[%clk 0:02:19]}  Ne5 {[%clk 0:02:52]} 13. Qf5 {[%clk 0:02:18]}  Qd7 {[%clk 0:02:38]} 14. Qxd7+ {[%clk 0:02:10]}  Kxd7 {[%clk 0:02:39]} 15. f4 {[%clk 0:02:04]}  gxf4 {[%clk 0:02:38]} 16. Bxf4 {[%clk 0:02:05]}  Nf6 {[%clk 0:02:39]} 17. a4 {[%clk 0:01:53]}  Nxe4 {[%clk 0:02:38]} 18. Bxe5 {[%clk 0:01:52]}  dxe5 {[%clk 0:02:39]} 19. Rxf7 {[%clk 0:01:51]}  Nd6 {[%clk 0:02:38]} 20. Rf3 {[%clk 0:01:31]}  Raf8 {[%clk 0:02:34]} 21. Re3 {[%clk 0:01:30]}  e4 {[%clk 0:02:29]} 22. a5 {[%clk 0:01:29]}  h5 {[%clk 0:02:21]} 23. Rb1 {[%clk 0:01:27]}  Kc7 {[%clk 0:02:20]} 24. Rg3 {[%clk 0:01:26]}  Rf7 {[%clk 0:02:14]} 25. Rg6 {[%clk 0:01:23]}  h4 {[%clk 0:02:10]} 26. Re6 {[%clk 0:01:22]}  Rg8 {[%clk 0:02:05]} 27. Rf1 {[%clk 0:01:19]}  Rxf1+ {[%clk 0:02:03]} 28. Kxf1 {[%clk 0:01:18]}  Kd8 {[%clk 0:02:02]} 29. Kf2 {[%clk 0:01:13]}  Rg3 {[%clk 0:01:58]} 30. Rh6 {[%clk 0:01:11]}  Nf5 {[%clk 0:01:35]} 31. Rh5 {[%clk 0:01:08]}  Nd6 {[%clk 0:01:14]} 32. Rxh4 {[%clk 0:01:08]}  Rxc3 {[%clk 0:01:14]} 33. Rh8+ {[%clk 0:01:07]}  Kc7 {[%clk 0:01:13]} 34. h4 {[%clk 0:01:07]}  Nf5 {[%clk 0:01:09]} 35. Bg4 {[%clk 0:00:56]}  e3+ {[%clk 0:01:00]} 36. Kf3 {[%clk 0:00:47]}  Nd4+ {[%clk 0:00:59]} 37. Ke4 {[%clk 0:00:47]}  e2 {[%clk 0:00:57]} 38. Bxe2 {[%clk 0:00:47]}  Nxe2 {[%clk 0:00:58]} 39. g4 {[%clk 0:00:47]}  Rxc4+ {[%clk 0:00:45]} 40. Kf5 {[%clk 0:00:47]}  Ng3+ {[%clk 0:00:40]} 41. Kg5 {[%clk 0:00:46]}  Ne4+ {[%clk 0:00:37]} 42. Kg6 {[%clk 0:00:44]}  Nf6 {[%clk 0:00:29]} 43. g5 {[%clk 0:00:43]}  Nxd5 {[%clk 0:00:29]} 44. h5 {[%clk 0:00:41]}  Rh4 {[%clk 0:00:25]} 45. h6 {[%clk 0:00:39]}  c4 {[%clk 0:00:24]} 46. Rf8 {[%clk 0:00:32]}  Nf4+ {[%clk 0:00:20]} 47. Kh7 {[%clk 0:00:23]}  c3 {[%clk 0:00:19]} 48. g6 {[%clk 0:00:23]}  c2 {[%clk 0:00:13]} 49. g7 {[%clk 0:00:17]}  Rg4 {[%clk 0:00:11]} 50. Rxf4 {[%clk 0:00:15]}  Rxf4 {[%clk 0:00:09]} 51. g8=Q {[%clk 0:00:15]}  c1=Q {[%clk 0:00:10]} 52. Qg3 {[%clk 0:00:14]}  Qf1 {[%clk 0:00:08]} 53. Kg7 {[%clk 0:00:10]}  Kd8 {[%clk 0:00:08]} 54. h7 {[%clk 0:00:10]}  Rf7+ {[%clk 0:00:07]} 55. Kh6 {[%clk 0:00:08]}  Qf6+ {[%clk 0:00:07]} 56. Qg6 {[%clk 0:00:08]}  Qxg6+ {[%clk 0:00:06]} 57. Kxg6 {[%clk 0:00:09]}  Rxh7 {[%clk 0:00:07]} 58. Kxh7 {[%clk 0:00:09]}  b6 {[%clk 0:00:07]} 59. a6 {[%clk 0:00:09]}  b5 {[%clk 0:00:07]} 60. Kg6 {[%clk 0:00:09]}  Kc7 {[%clk 0:00:08]} 61. Kf5 {[%clk 0:00:10]}  Kb6 {[%clk 0:00:08]} 62. Ke5 {[%clk 0:00:11]}  Kxa6 {[%clk 0:00:09]} 63. Ke6 {[%clk 0:00:12]}  Ka5 {[%clk 0:00:09]} 0-1


[Site "https://www.chess.com"]

[Event "Late Titled Tuesday Blitz February 8 2022"]
[White "Moore, Nicholas"]
[Black "Chernomordik, Pavel"]
[WhiteFideId "4303709"]
[BlackFideId "2804530"]
[WhiteElo "2295"]
[BlackElo "2249"]
[Result "1-0"]
[Round "06"]
[TimeControl "180+1"]
[Date "2022.02.09"]
[WhiteClock "0:00:22"]
[BlackClock "0:01:04"]

1. d4 {[%clk 0:02:58]}  g6 {[%clk 0:02:59]} 2. c4 {[%clk 0:02:59]}  Bg7 {[%clk 0:03:00]} 3. Nc3 {[%clk 0:02:59]}  d6 {[%clk 0:03:00]} 4. e4 {[%clk 0:03:00]}  c6 {[%clk 0:02:59]} 5. Be2 {[%clk 0:03:00]}  a6 {[%clk 0:02:59]} 6. Nf3 {[%clk 0:03:00]}  b5 {[%clk 0:02:59]} 7. O-O {[%clk 0:02:59]}  Nf6 {[%clk 0:02:59]} 8. Qc2 {[%clk 0:02:49]}  bxc4 {[%clk 0:02:53]} 9. Bxc4 {[%clk 0:02:48]}  Bg4 {[%clk 0:02:50]} 10. Ng5 {[%clk 0:02:35]}  O-O {[%clk 0:02:46]} 11. f3 {[%clk 0:02:33]}  Bc8 {[%clk 0:02:45]} 12. Be3 {[%clk 0:02:22]}  h6 {[%clk 0:02:42]} 13. Nh3 {[%clk 0:02:22]}  Bxh3 {[%clk 0:02:40]} 14. gxh3 {[%clk 0:02:23]}  d5 {[%clk 0:02:40]} 15. Bb3 {[%clk 0:02:20]}  Qd7 {[%clk 0:02:34]} 16. Qg2 {[%clk 0:02:08]}  dxe4 {[%clk 0:02:21]} 17. fxe4 {[%clk 0:02:07]}  Kh7 {[%clk 0:02:20]} 18. e5 {[%clk 0:02:03]}  Nh5 {[%clk 0:02:19]} 19. Bxf7 {[%clk 0:01:56]}  Rxf7 {[%clk 0:02:09]} 20. Rxf7 {[%clk 0:01:57]}  Qe6 {[%clk 0:02:08]} 21. Raf1 {[%clk 0:01:54]}  Nd7 {[%clk 0:02:08]} 22. Ne4 {[%clk 0:01:50]}  Rg8 {[%clk 0:01:56]} 23. Kh1 {[%clk 0:00:49]}  c5 {[%clk 0:01:55]} 24. Bxh6 {[%clk 0:00:32]}  Kxh6 {[%clk 0:01:49]} 25. Qg5+ {[%clk 0:00:32]}  Kh7 {[%clk 0:01:48]} 26. Qxh5+ {[%clk 0:00:33]}  gxh5 {[%clk 0:01:46]} 27. Ng5+ {[%clk 0:00:33]}  Kg6 {[%clk 0:01:46]} 28. Nxe6 {[%clk 0:00:34]}  cxd4 {[%clk 0:01:43]} 29. Rxg7+ {[%clk 0:00:32]}  Rxg7 {[%clk 0:01:42]} 30. Rg1+ {[%clk 0:00:33]}  Kf5 {[%clk 0:01:40]} 31. Nxg7+ {[%clk 0:00:32]}  Kxe5 {[%clk 0:01:40]} 32. Nxh5 {[%clk 0:00:28]}  d3 {[%clk 0:01:36]} 33. Ng3 {[%clk 0:00:28]}  Nc5 {[%clk 0:01:34]} 34. h4 {[%clk 0:00:28]}  Kf4 {[%clk 0:01:27]} 35. Nf1 {[%clk 0:00:29]}  Ne4 {[%clk 0:01:26]} 36. Rg2 {[%clk 0:00:29]}  Kf3 {[%clk 0:01:23]} 37. Kg1 {[%clk 0:00:26]}  e5 {[%clk 0:01:20]} 38. h5 {[%clk 0:00:26]}  Nf6 {[%clk 0:01:20]} 39. h6 {[%clk 0:00:24]}  e4 {[%clk 0:01:19]} 40. Rg3+ {[%clk 0:00:24]}  Kf4 {[%clk 0:01:18]} 41. Kf2 {[%clk 0:00:23]}  e3+ {[%clk 0:01:10]} 42. Nxe3 {[%clk 0:00:22]}  Ne4+ {[%clk 0:01:10]} 43. Ke1 {[%clk 0:00:20]}  Nxg3 {[%clk 0:01:09]} 44. hxg3+ {[%clk 0:00:20]}  Kxe3 {[%clk 0:01:05]} 45. h7 {[%clk 0:00:21]}  d2+ {[%clk 0:01:04]} 46. Kd1 {[%clk 0:00:21]}  Kd3 {[%clk 0:01:04]} 47. h8=Q {[%clk 0:00:22]} 1-0


[Site "https://www.chess.com"]

[Event "Late Titled Tuesday Blitz February 8 2022"]
[White "Moroni, Luca Jr"]
[Black "Deac, Bogdan-Daniel"]
[WhiteFideId "865834"]
[BlackFideId "1226380"]
[WhiteElo "2573"]
[BlackElo "2646"]
[Result "1/2-1/2"]
[Round "06"]
[TimeControl "180+1"]
[Date "2022.02.08"]
[WhiteClock "0:00:09"]
[BlackClock "0:00:09"]

1. d4 {[%clk 0:03:00]}  Nf6 {[%clk 0:02:59]} 2. c4 {[%clk 0:03:01]}  g6 {[%clk 0:02:59]} 3. Nc3 {[%clk 0:03:01]}  d5 {[%clk 0:02:59]} 4. cxd5 {[%clk 0:03:02]}  Nxd5 {[%clk 0:02:59]} 5. e4 {[%clk 0:03:01]}  Nxc3 {[%clk 0:02:59]} 6. bxc3 {[%clk 0:03:02]}  Bg7 {[%clk 0:02:59]} 7. Bb5+ {[%clk 0:03:03]}  c6 {[%clk 0:02:56]} 8. Ba4 {[%clk 0:03:02]}  b5 {[%clk 0:02:47]} 9. Bb3 {[%clk 0:03:02]}  a5 {[%clk 0:02:47]} 10. Nf3 {[%clk 0:02:55]}  a4 {[%clk 0:02:36]} 11. Bc2 {[%clk 0:02:55]}  O-O {[%clk 0:02:36]} 12. O-O {[%clk 0:02:54]}  c5 {[%clk 0:02:35]} 13. Rb1 {[%clk 0:02:49]}  Bg4 {[%clk 0:02:02]} 14. Rxb5 {[%clk 0:02:38]}  Bxf3 {[%clk 0:01:53]} 15. Qxf3 {[%clk 0:02:35]}  cxd4 {[%clk 0:01:52]} 16. cxd4 {[%clk 0:02:36]}  Nc6 {[%clk 0:01:48]} 17. Be3 {[%clk 0:02:24]}  Nxd4 {[%clk 0:01:45]} 18. Bxd4 {[%clk 0:02:23]}  Qxd4 {[%clk 0:01:46]} 19. a3 {[%clk 0:01:39]}  Rfd8 {[%clk 0:01:19]} 20. Rb4 {[%clk 0:01:28]}  Qd2 {[%clk 0:00:44]} 21. Rc4 {[%clk 0:01:28]}  Rd4 {[%clk 0:00:36]} 22. Rxd4 {[%clk 0:01:22]}  Bxd4 {[%clk 0:00:24]} 23. e5 {[%clk 0:01:22]}  Ra5 {[%clk 0:00:18]} 24. e6 {[%clk 0:01:19]}  fxe6 {[%clk 0:00:18]} 25. Bd3 {[%clk 0:01:00]}  Bf6 {[%clk 0:00:13]} 26. Bc4 {[%clk 0:00:53]}  Kg7 {[%clk 0:00:13]} 27. Bxe6 {[%clk 0:00:49]}  Re5 {[%clk 0:00:13]} 28. Bc4 {[%clk 0:00:45]}  Qc2 {[%clk 0:00:09]} 29. Qd3 {[%clk 0:00:40]}  Qxd3 {[%clk 0:00:05]} 30. Bxd3 {[%clk 0:00:41]}  Rc5 {[%clk 0:00:05]} 31. g3 {[%clk 0:00:16]}  Rc3 {[%clk 0:00:05]} 32. Bb5 {[%clk 0:00:16]}  Rxa3 {[%clk 0:00:05]} 33. Re1 {[%clk 0:00:09]}  Ra2 {[%clk 0:00:04]} 34. Re4 {[%clk 0:00:09]}  a3 {[%clk 0:00:04]} 35. Ra4 {[%clk 0:00:09]}  Ra1+ {[%clk 0:00:04]} 36. Kg2 {[%clk 0:00:09]}  Bb2 {[%clk 0:00:05]} 37. Bc4 {[%clk 0:00:08]}  Rc1 {[%clk 0:00:05]} 38. Bd5 {[%clk 0:00:09]}  h5 {[%clk 0:00:05]} 39. Ra7 {[%clk 0:00:08]}  Kf6 {[%clk 0:00:05]} 40. Ra6+ {[%clk 0:00:09]}  Kg7 {[%clk 0:00:05]} 41. Ra7 {[%clk 0:00:08]}  Re1 {[%clk 0:00:05]} 42. h4 {[%clk 0:00:07]}  Re5 {[%clk 0:00:04]} 43. Bc4 {[%clk 0:00:07]}  Re1 {[%clk 0:00:05]} 44. Bd3 {[%clk 0:00:06]}  Kf6 {[%clk 0:00:04]} 45. Ra6+ {[%clk 0:00:06]}  e6 {[%clk 0:00:04]} 46. Bc4 {[%clk 0:00:05]}  Re4 {[%clk 0:00:04]} 47. Ba2 {[%clk 0:00:05]}  Re2 {[%clk 0:00:04]} 48. Bc4 {[%clk 0:00:05]}  Re4 {[%clk 0:00:04]} 49. Ba2 {[%clk 0:00:05]}  Re5 {[%clk 0:00:04]} 50. Bb3 {[%clk 0:00:05]}  Re1 {[%clk 0:00:04]} 51. Ba2 {[%clk 0:00:05]}  Bc1 {[%clk 0:00:04]} 52. Bb3 {[%clk 0:00:05]}  Bb2 {[%clk 0:00:04]} 53. Ba2 {[%clk 0:00:05]}  Re4 {[%clk 0:00:05]} 54. Bb3 {[%clk 0:00:05]}  Re5 {[%clk 0:00:06]} 55. Ba2 {[%clk 0:00:06]}  Re1 {[%clk 0:00:06]} 56. Bb3 {[%clk 0:00:06]}  Kf5 {[%clk 0:00:07]} 57. Bc2+ {[%clk 0:00:06]}  Kf6 {[%clk 0:00:07]} 58. Bb3 {[%clk 0:00:07]}  Re5 {[%clk 0:00:07]} 59. Ba2 {[%clk 0:00:07]}  Ke7 {[%clk 0:00:08]} 60. Bb3 {[%clk 0:00:07]}  Kd7 {[%clk 0:00:08]} 61. Ba2 {[%clk 0:00:08]}  Ke7 {[%clk 0:00:09]} 62. Bb3 {[%clk 0:00:08]}  Kf7 {[%clk 0:00:09]} 63. Ba2 {[%clk 0:00:08]}  Kf6 {[%clk 0:00:10]} 64. Bb3 {[%clk 0:00:09]}  Bd4 {[%clk 0:00:10]} 65. Rxa3 {[%clk 0:00:07]}  Rf5 {[%clk 0:00:10]} 66. Ra2 {[%clk 0:00:08]}  g5 {[%clk 0:00:09]} 67. Re2 {[%clk 0:00:08]}  e5 {[%clk 0:00:08]} 68. hxg5+ {[%clk 0:00:08]}  Kxg5 {[%clk 0:00:09]} 69. Bc2 {[%clk 0:00:09]}  Rf6 {[%clk 0:00:09]} 70. Be4 {[%clk 0:00:08]}  h4 {[%clk 0:00:09]} 71. gxh4+ {[%clk 0:00:08]}  Kxh4 {[%clk 0:00:09]} 72. Rd2 {[%clk 0:00:06]}  Kg4 {[%clk 0:00:09]} 73. Re2 {[%clk 0:00:06]}  Kf4 {[%clk 0:00:09]} 74. Bd3 {[%clk 0:00:05]}  Kg5 {[%clk 0:00:08]} 75. f3 {[%clk 0:00:05]}  Rf7 {[%clk 0:00:07]} 76. Re4 {[%clk 0:00:05]}  Rf4 {[%clk 0:00:05]} 77. Rxf4 {[%clk 0:00:05]}  Kxf4 {[%clk 0:00:06]} 78. Be4 {[%clk 0:00:06]}  Be3 {[%clk 0:00:05]} 79. Kf1 {[%clk 0:00:06]}  Bd4 {[%clk 0:00:06]} 80. Ke2 {[%clk 0:00:06]}  Be3 {[%clk 0:00:07]} 81. Kf1 {[%clk 0:00:07]}  Bd4 {[%clk 0:00:08]} 82. Ke2 {[%clk 0:00:08]}  Be3 {[%clk 0:00:09]} 83. Kf1 {[%clk 0:00:09]} 1/2-1/2


[Site "https://www.chess.com"]

[Event "Late Titled Tuesday Blitz February 8 2022"]
[White "Nogerbek, Kazybek"]
[Black "Nepomniachtchi, Ian"]
[WhiteFideId "13710427"]
[BlackFideId "4168119"]
[WhiteElo "2478"]
[BlackElo "2740"]
[Result "0-1"]
[Round "06"]
[TimeControl "180+1"]
[Date "2022.02.08"]
[WhiteClock "0:01:17"]
[BlackClock "0:02:29"]

1. d4 {[%clk 0:02:44]}  Nf6 {[%clk 0:02:59]} 2. c4 {[%clk 0:02:45]}  e6 {[%clk 0:02:59]} 3. Nc3 {[%clk 0:02:45]}  Bb4 {[%clk 0:02:58]} 4. Qc2 {[%clk 0:02:42]}  O-O {[%clk 0:02:58]} 5. e4 {[%clk 0:02:34]}  d5 {[%clk 0:02:57]} 6. e5 {[%clk 0:02:35]}  Ne4 {[%clk 0:02:58]} 7. Bd3 {[%clk 0:02:35]}  c5 {[%clk 0:02:57]} 8. Ne2 {[%clk 0:02:36]}  cxd4 {[%clk 0:02:55]} 9. Nxd4 {[%clk 0:02:37]}  Nd7 {[%clk 0:02:54]} 10. Bf4 {[%clk 0:02:35]}  Qh4 {[%clk 0:02:54]} 11. g3 {[%clk 0:02:30]}  Qh5 {[%clk 0:02:52]} 12. O-O {[%clk 0:02:26]}  Bxc3 {[%clk 0:02:46]} 13. bxc3 {[%clk 0:02:24]}  Nxe5 {[%clk 0:02:46]} 14. Be2 {[%clk 0:02:06]}  Ng4 {[%clk 0:02:46]} 15. Bxg4 {[%clk 0:02:05]}  Qxg4 {[%clk 0:02:46]} 16. f3 {[%clk 0:02:06]}  Qh5 {[%clk 0:02:44]} 17. fxe4 {[%clk 0:02:00]}  e5 {[%clk 0:02:44]} 18. cxd5 {[%clk 0:01:51]}  exd4 {[%clk 0:02:40]} 19. cxd4 {[%clk 0:01:50]}  Bh3 {[%clk 0:02:40]} 20. Rfe1 {[%clk 0:01:46]}  Rac8 {[%clk 0:02:39]} 21. Qf2 {[%clk 0:01:43]}  Rc3 {[%clk 0:02:38]} 22. Rac1 {[%clk 0:01:39]}  Rfc8 {[%clk 0:02:33]} 23. Qd2 {[%clk 0:01:30]}  Rxc1 {[%clk 0:02:30]} 24. Rxc1 {[%clk 0:01:28]}  Rxc1+ {[%clk 0:02:30]} 25. Qxc1 {[%clk 0:01:17]}  Qe2 {[%clk 0:02:29]} 0-1


[Site "https://www.chess.com"]

[Event "Late Titled Tuesday Blitz February 8 2022"]
[White "Novikova, Galina"]
[Black "Jarocka, Liwia"]
[WhiteFideId "4157095"]
[BlackFideId "21807558"]
[WhiteElo "1863"]
[BlackElo "1896"]
[Result "0-1"]
[Round "06"]
[TimeControl "180+1"]
[Date "2022.02.09"]
[WhiteClock "0:00:06"]
[BlackClock "0:01:07"]

1. e4 {[%clk 0:03:00]}  d6 {[%clk 0:03:00]} 2. d4 {[%clk 0:03:00]}  Nf6 {[%clk 0:03:00]} 3. Nc3 {[%clk 0:03:01]}  e6 {[%clk 0:02:59]} 4. f3 {[%clk 0:03:02]}  Be7 {[%clk 0:02:59]} 5. Be3 {[%clk 0:03:03]}  O-O {[%clk 0:03:00]} 6. Qd2 {[%clk 0:03:03]}  c6 {[%clk 0:02:59]} 7. O-O-O {[%clk 0:03:04]}  e5 {[%clk 0:03:00]} 8. g4 {[%clk 0:03:04]}  exd4 {[%clk 0:02:59]} 9. Bxd4 {[%clk 0:03:05]}  Nfd7 {[%clk 0:02:58]} 10. Kb1 {[%clk 0:03:01]}  b5 {[%clk 0:02:56]} 11. Nce2 {[%clk 0:03:00]}  Nb6 {[%clk 0:02:50]} 12. Ng3 {[%clk 0:02:59]}  N8d7 {[%clk 0:02:50]} 13. Nf5 {[%clk 0:02:58]}  Ne5 {[%clk 0:02:45]} 14. Nxg7 {[%clk 0:02:53]}  Kxg7 {[%clk 0:02:43]} 15. f4 {[%clk 0:02:53]}  Bxg4 {[%clk 0:02:39]} 16. Be2 {[%clk 0:02:41]}  Bxe2 {[%clk 0:02:25]} 17. Nxe2 {[%clk 0:02:36]}  c5 {[%clk 0:02:26]} 18. fxe5 {[%clk 0:02:12]}  cxd4 {[%clk 0:02:25]} 19. Nxd4 {[%clk 0:02:10]}  Kh8 {[%clk 0:02:22]} 20. Nf5 {[%clk 0:02:08]}  Rg8 {[%clk 0:02:08]} 21. exd6 {[%clk 0:02:03]}  Bf6 {[%clk 0:02:07]} 22. Rhe1 {[%clk 0:01:58]}  Nc4 {[%clk 0:02:07]} 23. Qh6 {[%clk 0:01:51]}  Bxb2 {[%clk 0:02:00]} 24. Ne7 {[%clk 0:01:37]}  Bg7 {[%clk 0:01:29]} 25. Qh5 {[%clk 0:01:24]}  Qa5 {[%clk 0:01:23]} 26. Re3 {[%clk 0:00:17]}  Nxe3 {[%clk 0:01:16]} 27. Rg1 {[%clk 0:00:11]}  Qb4+ {[%clk 0:01:13]} 28. Kc1 {[%clk 0:00:10]}  Bb2+ {[%clk 0:01:07]} 29. Kb1 {[%clk 0:00:06]}  Rxg1+ {[%clk 0:01:07]} 0-1


[Site "https://www.chess.com"]

[Event "Late Titled Tuesday Blitz February 8 2022"]
[White "Ozen, Deniz"]
[Black "Al-Tarboush, Ward"]
[WhiteFideId "6349196"]
[BlackFideId "7601450"]
[WhiteElo "2326"]
[BlackElo "2276"]
[Result "1-0"]
[Round "06"]
[TimeControl "180+1"]
[Date "2022.02.08"]
[WhiteClock "0:01:41"]
[BlackClock "0:00:04"]

1. e4 {[%clk 0:03:00]}  b6 {[%clk 0:03:00]} 2. Nc3 {[%clk 0:03:00]}  Bb7 {[%clk 0:03:01]} 3. d4 {[%clk 0:03:01]}  e6 {[%clk 0:03:01]} 4. Bd3 {[%clk 0:03:02]}  Bb4 {[%clk 0:03:01]} 5. Qe2 {[%clk 0:03:02]}  d5 {[%clk 0:02:40]} 6. exd5 {[%clk 0:03:02]}  Qxd5 {[%clk 0:02:41]} 7. Nf3 {[%clk 0:03:02]}  Nf6 {[%clk 0:02:36]} 8. O-O {[%clk 0:02:58]}  Bxc3 {[%clk 0:02:37]} 9. bxc3 {[%clk 0:02:59]}  Qh5 {[%clk 0:02:37]} 10. Re1 {[%clk 0:02:57]}  Bxf3 {[%clk 0:02:37]} 11. Qxf3 {[%clk 0:02:56]}  Qxf3 {[%clk 0:02:36]} 12. gxf3 {[%clk 0:02:57]}  O-O {[%clk 0:02:34]} 13. Bf4 {[%clk 0:02:53]}  Nd5 {[%clk 0:02:31]} 14. Bg3 {[%clk 0:02:53]}  c6 {[%clk 0:02:11]} 15. c4 {[%clk 0:02:52]}  Ne7 {[%clk 0:02:07]} 16. c5 {[%clk 0:02:51]}  Nd7 {[%clk 0:01:57]} 17. Ba6 {[%clk 0:02:46]}  bxc5 {[%clk 0:01:47]} 18. Bd6 {[%clk 0:02:45]}  Rae8 {[%clk 0:01:16]} 19. dxc5 {[%clk 0:02:44]}  Nd5 {[%clk 0:00:41]} 20. Bb7 {[%clk 0:02:36]}  Nb4 {[%clk 0:00:36]} 21. Rec1 {[%clk 0:02:31]}  Rb8 {[%clk 0:00:36]} 22. Bxb8 {[%clk 0:02:25]}  Rxb8 {[%clk 0:00:37]} 23. a3 {[%clk 0:02:24]}  Nd5 {[%clk 0:00:13]} 24. Bxc6 {[%clk 0:02:20]}  Nxc5 {[%clk 0:00:13]} 25. Rab1 {[%clk 0:02:17]}  Rc8 {[%clk 0:00:12]} 26. Bxd5 {[%clk 0:02:17]}  exd5 {[%clk 0:00:13]} 27. Rb5 {[%clk 0:02:17]}  g6 {[%clk 0:00:10]} 28. Rcb1 {[%clk 0:02:17]}  Rc7 {[%clk 0:00:09]} 29. Ra5 {[%clk 0:02:15]}  Kg7 {[%clk 0:00:09]} 30. Rab5 {[%clk 0:02:03]}  Ne6 {[%clk 0:00:06]} 31. Rxd5 {[%clk 0:02:03]}  Rxc2 {[%clk 0:00:05]} 32. Rd7 {[%clk 0:02:03]}  a5 {[%clk 0:00:05]} 33. Ra7 {[%clk 0:02:03]}  Rc5 {[%clk 0:00:04]} 34. Rbb7 {[%clk 0:01:57]}  Rf5 {[%clk 0:00:03]} 35. Kf1 {[%clk 0:01:53]}  Nd4 {[%clk 0:00:03]} 36. a4 {[%clk 0:01:47]}  Nxf3 {[%clk 0:00:03]} 37. Rb5 {[%clk 0:01:47]}  Rf4 {[%clk 0:00:02]} 38. Rbxa5 {[%clk 0:01:45]}  Nxh2+ {[%clk 0:00:02]} 39. Kg2 {[%clk 0:01:45]}  Ng4 {[%clk 0:00:03]} 40. f3 {[%clk 0:01:42]}  Ne3+ {[%clk 0:00:03]} 41. Kf2 {[%clk 0:01:41]}  Rf6 {[%clk 0:00:04]} 42. Kxe3 {[%clk 0:01:41]} 1-0


[Site "https://www.chess.com"]